[Event "Early-Titled-Tuesday-Blitz-August-29-2023"]
[Site "Chess.com"]
[Date "2023.08.29"]
[Round "9"]
[White "Fandorine"]
[Black "TanitoluwaAps116"]
[Result "1-0"]
[WhiteElo "2951"]
[BlackElo "2773"]
[TimeControl "180+1"]
[EndTime "9:42:45 PDT"]
[Termination "Fandorine won by checkmate"]

1. e4 {[%clk 0:03:00.9]} 1... c5 {[%clk 0:02:49.7]} 2. b4 {[%clk 0:03:00.5]}
2... cxb4 {[%clk 0:02:47.7]} 3. a3 {[%clk 0:03:00.1]} 3... b3 {[%clk 0:02:45.2]}
4. c4 {[%clk 0:02:56.8]} 4... Nf6 {[%clk 0:02:43.7]} 5. e5 {[%clk 0:02:43.2]}
5... Ne4 {[%clk 0:02:28.7]} 6. Qxb3 {[%clk 0:02:42.4]} 6... Nc6 {[%clk
0:02:24.2]} 7. Bb2 {[%clk 0:02:40.3]} 7... e6 {[%clk 0:02:14.3]} 8. Nf3 {[%clk
0:02:23.1]} 8... Bc5 {[%clk 0:02:05.7]} 9. d4 {[%clk 0:02:15.7]} 9... Qa5+
{[%clk 0:01:57.9]} 10. Ke2 {[%clk 0:02:14.7]} 10... Bb6 {[%clk 0:01:36.1]} 11.
Ke3 {[%clk 0:01:22.9]} 11... Nxe5 {[%clk 0:01:03.5]} 12. Kxe4 {[%clk 0:01:09.2]}
12... Ng4 {[%clk 0:00:57.5]} 13. c5 {[%clk 0:01:09.4]} 13... Bxc5 {[%clk
0:00:42.3]} 14. dxc5 {[%clk 0:00:52.6]} 14... Qxc5 {[%clk 0:00:43.2]} 15. Kd3
{[%clk 0:00:52.9]} 15... Nxf2+ {[%clk 0:00:30.9]} 16. Ke2 {[%clk 0:00:51.9]}
16... Nxh1 {[%clk 0:00:29.6]} 17. Bd4 {[%clk 0:00:44.7]} 17... Qf5 {[%clk
0:00:19.3]} 18. Qb4 {[%clk 0:00:28.2]} 18... b6 {[%clk 0:00:10.6]} 19. Kd2
{[%clk 0:00:21.3]} 19... Bb7 {[%clk 0:00:08.6]} 20. Nc3 {[%clk 0:00:16.3]} 20...
Bxf3 {[%clk 0:00:03.8]} 21. gxf3 {[%clk 0:00:17.2]} 21... Qxf3 {[%clk 0:00:04]}
22. Be2 {[%clk 0:00:17]} 22... Qf4+ {[%clk 0:00:04]} 23. Be3 {[%clk 0:00:17.7]}
23... Qxh2 {[%clk 0:00:04.1]} 24. Ne4 {[%clk 0:00:15.9]} 24... d5 {[%clk
0:00:03.1]} 25. Rxh1 {[%clk 0:00:10.9]} 25... Qxh1 {[%clk 0:00:02]} 26. Bb5+
{[%clk 0:00:11.6]} 26... Kd8 {[%clk 0:00:01.9]} 27. Qd6+ {[%clk 0:00:12.2]}
27... Kc8 {[%clk 0:00:02.6]} 28. Ba6# {[%clk 0:00:12.9]} 1-0

[Event "Early-Titled-Tuesday-Blitz-August-29-2023"]
[Site "Chess.com"]
[Date "2023.08.29"]
[Round "9"]
[White "Roedor"]
[Black "biostatistician"]
[Result "0-1"]
[WhiteElo "2448"]
[BlackElo "2589"]
[TimeControl "180+1"]
[EndTime "9:42:45 PDT"]
[Termination "biostatistician won by checkmate"]

1. d4 {[%clk 0:02:55.8]} 1... Nf6 {[%clk 0:02:59.8]} 2. c4 {[%clk 0:02:55]} 2...
g6 {[%clk 0:02:59.8]} 3. g3 {[%clk 0:02:55]} 3... Bg7 {[%clk 0:02:59.8]} 4. Bg2
{[%clk 0:02:55.6]} 4... O-O {[%clk 0:03:00.7]} 5. Nc3 {[%clk 0:02:51.2]} 5... d6
{[%clk 0:02:58.9]} 6. Nf3 {[%clk 0:02:51.1]} 6... c6 {[%clk 0:02:58.7]} 7. O-O
{[%clk 0:02:51.2]} 7... Qa5 {[%clk 0:02:59.1]} 8. e4 {[%clk 0:02:47.6]} 8... Qh5
{[%clk 0:02:58]} 9. Ng5 {[%clk 0:02:43.1]} 9... Qxd1 {[%clk 0:02:57.3]} 10. Rxd1
{[%clk 0:02:42.8]} 10... Nbd7 {[%clk 0:02:53.8]} 11. h3 {[%clk 0:02:35.6]} 11...
e5 {[%clk 0:02:51.4]} 12. Be3 {[%clk 0:02:27.4]} 12... Re8 {[%clk 0:02:44.8]}
13. d5 {[%clk 0:02:26.2]} 13... h6 {[%clk 0:02:27.5]} 14. Nf3 {[%clk 0:02:23.8]}
14... cxd5 {[%clk 0:02:23.1]} 15. cxd5 {[%clk 0:02:24.7]} 15... a6 {[%clk
0:02:22.8]} 16. Rac1 {[%clk 0:02:23.1]} 16... b5 {[%clk 0:02:22.2]} 17. Nd2
{[%clk 0:02:18.2]} 17... Bb7 {[%clk 0:02:20.9]} 18. Nb3 {[%clk 0:02:18.1]} 18...
Rac8 {[%clk 0:02:17.5]} 19. Na5 {[%clk 0:02:18.1]} 19... Ba8 {[%clk 0:02:17.7]}
20. a4 {[%clk 0:02:08.1]} 20... b4 {[%clk 0:02:14.7]} 21. Na2 {[%clk 0:02:08]}
21... Nc5 {[%clk 0:02:13.8]} 22. Bxc5 {[%clk 0:02:00.9]} 22... Rxc5 {[%clk
0:02:07.8]} 23. Nc6 {[%clk 0:01:38.6]} 23... b3 {[%clk 0:01:45]} 24. Nab4 {[%clk
0:01:33.3]} 24... a5 {[%clk 0:01:31.9]} 25. Nd3 {[%clk 0:01:16.4]} 25... Rxc1
{[%clk 0:01:21.4]} 26. Rxc1 {[%clk 0:01:17.3]} 26... Nd7 {[%clk 0:01:18.2]} 27.
Nxa5 {[%clk 0:01:08.7]} 27... Nb6 {[%clk 0:01:16.1]} 28. Rc3 {[%clk 0:00:56.6]}
28... Nxa4 {[%clk 0:01:11.9]} 29. Rxb3 {[%clk 0:00:56.7]} 29... f5 {[%clk
0:01:12]} 30. Rb4 {[%clk 0:00:42.2]} 30... Nc5 {[%clk 0:01:11.8]} 31. Nxc5
{[%clk 0:00:41.3]} 31... dxc5 {[%clk 0:01:12.7]} 32. Rb6 {[%clk 0:00:39.5]}
32... Kf7 {[%clk 0:01:07.5]} 33. Nc4 {[%clk 0:00:38.2]} 33... Rd8 {[%clk
0:01:02.3]} 34. h4 {[%clk 0:00:30.2]} 34... fxe4 {[%clk 0:01:01.4]} 35. Bxe4
{[%clk 0:00:31.1]} 35... Bxd5 {[%clk 0:01:01]} 36. Bxg6+ {[%clk 0:00:27.6]}
36... Kf8 {[%clk 0:00:58.7]} 37. Ne3 {[%clk 0:00:24.9]} 37... Bf3 {[%clk
0:00:56.2]} 38. Kh2 {[%clk 0:00:12.3]} 38... Rd2 {[%clk 0:00:53.9]} 39. g4
{[%clk 0:00:12.1]} 39... e4 {[%clk 0:00:51.1]} 40. Kg3 {[%clk 0:00:12]} 40...
Be5+ {[%clk 0:00:50]} 41. Kh3 {[%clk 0:00:08.7]} 41... Rxf2 {[%clk 0:00:50.2]}
42. Re6 {[%clk 0:00:07.5]} 42... Rh2# {[%clk 0:00:49.2]} 0-1

[Event "Early-Titled-Tuesday-Blitz-August-29-2023"]
[Site "Chess.com"]
[Date "2023.08.29"]
[Round "9"]
[White "KevinGeorgeMicheal"]
[Black "tylityli"]
[Result "1/2-1/2"]
[WhiteElo "2195"]
[BlackElo "2351"]
[TimeControl "180+1"]
[EndTime "9:42:51 PDT"]
[Termination "Game drawn by agreement"]

1. e4 {[%clk 0:02:59.9]} 1... e5 {[%clk 0:02:52]} 2. Nf3 {[%clk 0:02:58.3]} 2...
Nc6 {[%clk 0:02:51.4]} 3. Nc3 {[%clk 0:02:53.6]} 3... Nf6 {[%clk 0:02:50.2]} 4.
d4 {[%clk 0:02:52.2]} 4... exd4 {[%clk 0:02:49.3]} 5. Nd5 {[%clk 0:02:52.3]}
5... Be7 {[%clk 0:02:34.4]} 6. Nxd4 {[%clk 0:02:46.1]} 6... Nxd4 {[%clk
0:02:25.1]} 7. Qxd4 {[%clk 0:02:45.7]} 7... Nxd5 {[%clk 0:02:25.4]} 8. Qxd5
{[%clk 0:02:41.4]} 8... c6 {[%clk 0:02:22.9]} 9. Qd3 {[%clk 0:02:36.1]} 9... d5
{[%clk 0:02:20.9]} 10. exd5 {[%clk 0:02:35.5]} 10... Qxd5 {[%clk 0:02:21.4]} 11.
Qxd5 {[%clk 0:02:34.7]} 11... cxd5 {[%clk 0:02:22.3]} 12. Bb5+ {[%clk
0:02:34.8]} 12... Bd7 {[%clk 0:02:22]} 13. Bxd7+ {[%clk 0:02:33.8]} 13... Kxd7
{[%clk 0:02:22.9]} 14. Be3 {[%clk 0:02:31.7]} 14... Kc6 {[%clk 0:02:22.3]} 15.
Ke2 {[%clk 0:02:31]} 15... Bf6 {[%clk 0:02:21.6]} 16. c3 {[%clk 0:02:30.6]}
16... Rhe8 {[%clk 0:02:21.7]} 17. Kf3 {[%clk 0:02:30.1]} 17... b6 {[%clk
0:02:20.7]} 18. Rad1 {[%clk 0:02:29.6]} 18... Rad8 {[%clk 0:02:19.8]} 19. Rd3
{[%clk 0:02:26.5]} 19... h5 {[%clk 0:02:14.7]} 20. Rhd1 {[%clk 0:02:25.2]} 20...
g5 {[%clk 0:02:14.1]} 21. h3 {[%clk 0:02:22.5]} 21... Re4 {[%clk 0:02:09.5]} 22.
g4 {[%clk 0:02:19.9]} 22... a6 {[%clk 0:01:53.2]} 23. gxh5 {[%clk 0:02:11.4]}
23... Rh4 {[%clk 0:01:52.8]} 24. Kg2 {[%clk 0:02:11.2]} 24... b5 {[%clk
0:01:40.8]} 25. b3 {[%clk 0:02:04.6]} 25... a5 {[%clk 0:01:40.4]} 26. h6 {[%clk
0:01:40.4]} 26... a4 {[%clk 0:01:20.8]} 27. h7 {[%clk 0:01:25.2]} 27... Rxh7
{[%clk 0:01:18.2]} 28. c4 {[%clk 0:01:25.1]} 28... bxc4 {[%clk 0:01:03.6]} 29.
bxc4 {[%clk 0:01:21]} 29... d4 {[%clk 0:00:43.9]} 30. Bxd4 {[%clk 0:01:20.4]}
30... Bxd4 {[%clk 0:00:42.9]} 31. Rxd4 {[%clk 0:01:20.9]} 31... Rxd4 {[%clk
0:00:42.9]} 32. Rxd4 {[%clk 0:01:21]} 32... Kc5 {[%clk 0:00:43.3]} 33. Rg4
{[%clk 0:01:20.7]} 33... f6 {[%clk 0:00:42]} 34. f4 {[%clk 0:01:07.3]} 34... Rh4
{[%clk 0:00:33.6]} 35. fxg5 {[%clk 0:00:31.5]} 35... Rxg4+ {[%clk 0:00:32.7]}
36. hxg4 {[%clk 0:00:32.1]} 36... fxg5 {[%clk 0:00:33.4]} 37. Kf3 {[%clk
0:00:32.6]} 37... Kxc4 {[%clk 0:00:33.9]} 38. Ke4 {[%clk 0:00:33]} 38... Kc3
{[%clk 0:00:33.8]} 39. Kf5 {[%clk 0:00:33.5]} 39... Kb2 {[%clk 0:00:34.5]} 40.
Kxg5 {[%clk 0:00:33.9]} 40... Kxa2 {[%clk 0:00:35.1]} 41. Kh6 {[%clk 0:00:32.7]}
41... Kb1 {[%clk 0:00:29.2]} 42. g5 {[%clk 0:00:32.7]} 42... a3 {[%clk
0:00:29.8]} 43. g6 {[%clk 0:00:33]} 43... a2 {[%clk 0:00:30.4]} 44. g7 {[%clk
0:00:33.3]} 44... a1=Q {[%clk 0:00:31]} 45. g8=Q {[%clk 0:00:33.1]} 45... Qa6+
{[%clk 0:00:30.2]} 46. Qg6+ {[%clk 0:00:31.8]} 46... Qxg6+ {[%clk 0:00:24.9]}
1/2-1/2

[Event "Early-Titled-Tuesday-Blitz-August-29-2023"]
[Site "Chess.com"]
[Date "2023.08.29"]
[Round "9"]
[White "YEIKO2017"]
[Black "RandomNoob04"]
[Result "1-0"]
[WhiteElo "2475"]
[BlackElo "2624"]
[TimeControl "180+1"]
[EndTime "9:42:52 PDT"]
[Termination "YEIKO2017 won on time"]

1. e4 {[%clk 0:03:00.9]} 1... e5 {[%clk 0:03:00.2]} 2. Nf3 {[%clk 0:03:00.9]}
2... Nf6 {[%clk 0:02:59.7]} 3. d4 {[%clk 0:03:00.1]} 3... Nxe4 {[%clk
0:02:59.6]} 4. Bd3 {[%clk 0:03:00.2]} 4... d5 {[%clk 0:03:00]} 5. Nxe5 {[%clk
0:03:00.3]} 5... Nd7 {[%clk 0:02:59.7]} 6. Nxd7 {[%clk 0:03:00.9]} 6... Bxd7
{[%clk 0:03:00.6]} 7. O-O {[%clk 0:03:00.9]} 7... Bd6 {[%clk 0:03:01.3]} 8. c4
{[%clk 0:03:00.2]} 8... c6 {[%clk 0:03:01.3]} 9. Nc3 {[%clk 0:02:59.1]} 9...
Nxc3 {[%clk 0:02:53.9]} 10. bxc3 {[%clk 0:03:00]} 10... O-O {[%clk 0:02:47.4]}
11. cxd5 {[%clk 0:02:59.4]} 11... cxd5 {[%clk 0:02:48.2]} 12. Qh5 {[%clk
0:02:59.2]} 12... f5 {[%clk 0:02:43.7]} 13. c4 {[%clk 0:02:41.9]} 13... dxc4
{[%clk 0:02:38.9]} 14. Bxc4+ {[%clk 0:02:40.7]} 14... Kh8 {[%clk 0:02:39.6]} 15.
Bg5 {[%clk 0:02:39.3]} 15... Qe8 {[%clk 0:02:34.5]} 16. Qh4 {[%clk 0:02:28.7]}
16... Qg6 {[%clk 0:02:31.9]} 17. Rfe1 {[%clk 0:02:15.6]} 17... Rae8 {[%clk
0:02:21]} 18. Bf4 {[%clk 0:01:52.4]} 18... Bb4 {[%clk 0:02:02.3]} 19. Re3 {[%clk
0:01:43.4]} 19... Rxe3 {[%clk 0:01:43]} 20. fxe3 {[%clk 0:01:44.3]} 20... Qc6
{[%clk 0:01:27.4]} 21. Be2 {[%clk 0:01:27.7]} 21... Bd2 {[%clk 0:01:19]} 22. Rd1
{[%clk 0:01:18.3]} 22... Qc3 {[%clk 0:01:15.5]} 23. Qe7 {[%clk 0:01:16.2]} 23...
Re8 {[%clk 0:00:32.9]} 24. Qxd7 {[%clk 0:01:11.6]} 24... Bxe3+ {[%clk
0:00:32.8]} 25. Kh1 {[%clk 0:01:08.5]} 25... Rg8 {[%clk 0:00:30]} 26. Be5 {[%clk
0:01:05.1]} 26... Qc2 {[%clk 0:00:23.8]} 27. Bf3 {[%clk 0:01:05.1]} 27... Bh6
{[%clk 0:00:17.6]} 28. Qc7 {[%clk 0:00:55.4]} 28... Qa4 {[%clk 0:00:14.2]} 29.
d5 {[%clk 0:00:54.1]} 29... Re8 {[%clk 0:00:09.4]} 30. Qf7 {[%clk 0:00:42.8]}
30... Bf4 {[%clk 0:00:02.7]} 31. Qxe8+ {[%clk 0:00:39.2]} 31... Qxe8 {[%clk
0:00:02.1]} 32. Bxf4 {[%clk 0:00:39.8]} 32... g5 {[%clk 0:00:01.6]} 33. Bxg5
{[%clk 0:00:37.1]} 33... Kg7 {[%clk 0:00:02.1]} 34. d6 {[%clk 0:00:36.7]} 34...
Qd7 {[%clk 0:00:02.8]} 35. Bxb7 {[%clk 0:00:35]} 35... Kg6 {[%clk 0:00:01.3]}
36. Bc6 {[%clk 0:00:32.6]} 1-0

[Event "Early-Titled-Tuesday-Blitz-August-29-2023"]
[Site "Chess.com"]
[Date "2023.08.29"]
[Round "9"]
[White "wqws"]
[Black "Arseniy_Nesterov"]
[Result "0-1"]
[WhiteElo "2681"]
[BlackElo "2891"]
[TimeControl "180+1"]
[EndTime "9:42:54 PDT"]
[Termination "Arseniy_Nesterov won by resignation"]

1. e4 {[%clk 0:02:55.2]} 1... e5 {[%clk 0:02:59.4]} 2. Nf3 {[%clk 0:02:54.2]}
2... Nc6 {[%clk 0:02:59.2]} 3. Bb5 {[%clk 0:02:54.2]} 3... a6 {[%clk 0:02:59.1]}
4. Ba4 {[%clk 0:02:53.7]} 4... b5 {[%clk 0:02:59.2]} 5. Bb3 {[%clk 0:02:53.9]}
5... Na5 {[%clk 0:02:59.8]} 6. O-O {[%clk 0:02:51.8]} 6... d6 {[%clk 0:02:59.3]}
7. d4 {[%clk 0:02:28.9]} 7... exd4 {[%clk 0:02:58.6]} 8. Qxd4 {[%clk 0:02:28.5]}
8... Bb7 {[%clk 0:02:56.9]} 9. Qe3 {[%clk 0:02:18.7]} 9... Nxb3 {[%clk
0:02:47.1]} 10. axb3 {[%clk 0:02:18.7]} 10... Be7 {[%clk 0:02:41.3]} 11. Nc3
{[%clk 0:02:17.4]} 11... Nf6 {[%clk 0:02:38]} 12. Qd3 {[%clk 0:02:14.6]} 12...
O-O {[%clk 0:02:36]} 13. Rd1 {[%clk 0:02:11.1]} 13... b4 {[%clk 0:02:20.2]} 14.
Nd5 {[%clk 0:02:11.1]} 14... Nxd5 {[%clk 0:02:20.4]} 15. exd5 {[%clk 0:02:12]}
15... Bf6 {[%clk 0:02:20]} 16. h4 {[%clk 0:01:57.6]} 16... h6 {[%clk 0:02:19]}
17. Be3 {[%clk 0:01:38.8]} 17... Bxb2 {[%clk 0:02:15.5]} 18. Rab1 {[%clk
0:01:22.6]} 18... Bf6 {[%clk 0:02:06.7]} 19. g4 {[%clk 0:00:43.1]} 19... Qd7
{[%clk 0:01:28.6]} 20. Qc4 {[%clk 0:00:26.3]} 20... Bc3 {[%clk 0:01:23]} 21. g5
{[%clk 0:00:21.4]} 21... Qf5 {[%clk 0:01:07.6]} 22. Nh2 {[%clk 0:00:14]} 22...
Rfe8 {[%clk 0:00:59.6]} 23. gxh6 {[%clk 0:00:13.6]} 23... Re4 {[%clk 0:00:38.5]}
24. Qxc7 {[%clk 0:00:13.6]} 24... Qg6+ {[%clk 0:00:20.7]} 25. Kf1 {[%clk
0:00:13]} 25... Bc8 {[%clk 0:00:19.4]} 26. Ke2 {[%clk 0:00:06.8]} 26... Qh5+
{[%clk 0:00:14.6]} 27. Kd3 {[%clk 0:00:03.9]} 27... Bf5 {[%clk 0:00:14.4]} 28.
Qxd6 {[%clk 0:00:02.6]} 28... Re6+ {[%clk 0:00:14.1]} 0-1

[Event "Early-Titled-Tuesday-Blitz-August-29-2023"]
[Site "Chess.com"]
[Date "2023.08.29"]
[Round "9"]
[White "jaskol95"]
[Black "carokannlover213"]
[Result "1-0"]
[WhiteElo "2581"]
[BlackElo "2700"]
[TimeControl "180+1"]
[EndTime "9:42:57 PDT"]
[Termination "jaskol95 won by checkmate"]

1. e4 {[%clk 0:03:00.9]} 1... e6 {[%clk 0:02:57]} 2. d4 {[%clk 0:02:58.6]} 2...
d5 {[%clk 0:02:57.4]} 3. e5 {[%clk 0:02:54.9]} 3... c5 {[%clk 0:02:56.9]} 4. c3
{[%clk 0:02:55.6]} 4... Nc6 {[%clk 0:02:57.4]} 5. Nf3 {[%clk 0:02:55.8]} 5...
Bd7 {[%clk 0:02:57.9]} 6. Be2 {[%clk 0:02:54.6]} 6... f6 {[%clk 0:02:56.6]} 7.
exf6 {[%clk 0:02:53]} 7... Nxf6 {[%clk 0:02:55.5]} 8. O-O {[%clk 0:02:53.6]}
8... Bd6 {[%clk 0:02:55.1]} 9. dxc5 {[%clk 0:02:53.8]} 9... Bxc5 {[%clk
0:02:55.2]} 10. Nbd2 {[%clk 0:02:51.5]} 10... O-O {[%clk 0:02:54.8]} 11. Nb3
{[%clk 0:02:52.1]} 11... Bb6 {[%clk 0:02:52]} 12. Bg5 {[%clk 0:02:47.6]} 12...
Qc7 {[%clk 0:02:39.5]} 13. Bh4 {[%clk 0:02:34.9]} 13... a6 {[%clk 0:02:35]} 14.
Bg3 {[%clk 0:02:33.2]} 14... e5 {[%clk 0:02:27.6]} 15. c4 {[%clk 0:02:25.1]}
15... d4 {[%clk 0:02:17.5]} 16. Nbxd4 {[%clk 0:02:11.5]} 16... Nxd4 {[%clk
0:02:11.5]} 17. Nxd4 {[%clk 0:02:11.7]} 17... Ne4 {[%clk 0:02:11.8]} 18. Nf3
{[%clk 0:02:07.2]} 18... Nxg3 {[%clk 0:02:11.9]} 19. hxg3 {[%clk 0:02:07.4]}
19... Bc6 {[%clk 0:02:10.6]} 20. b4 {[%clk 0:01:45.6]} 20... e4 {[%clk
0:01:52.3]} 21. Nd4 {[%clk 0:01:35.3]} 21... Rad8 {[%clk 0:01:04.5]} 22. c5
{[%clk 0:01:35.5]} 22... Ba7 {[%clk 0:01:05.1]} 23. Qb3+ {[%clk 0:01:33.6]}
23... Bd5 {[%clk 0:01:03.1]} 24. Bc4 {[%clk 0:01:31.1]} 24... Bxc4 {[%clk
0:01:00.7]} 25. Qxc4+ {[%clk 0:01:31.2]} 25... Kh8 {[%clk 0:01:01.3]} 26. Ne6
{[%clk 0:01:25]} 26... Qf7 {[%clk 0:00:59.6]} 27. Rac1 {[%clk 0:01:16.7]} 27...
Rde8 {[%clk 0:00:35.2]} 28. Nxf8 {[%clk 0:01:16.7]} 28... Qxf8 {[%clk
0:00:36.1]} 29. Rce1 {[%clk 0:01:13.1]} 29... Qf5 {[%clk 0:00:34.7]} 30. Re3
{[%clk 0:01:11.5]} 30... Bb8 {[%clk 0:00:33.1]} 31. Rfe1 {[%clk 0:01:09.4]}
31... Rf8 {[%clk 0:00:33.4]} 32. Qe2 {[%clk 0:01:07]} 32... a5 {[%clk
0:00:32.9]} 33. a3 {[%clk 0:01:06.6]} 33... axb4 {[%clk 0:00:25.8]} 34. axb4
{[%clk 0:01:06.8]} 34... h6 {[%clk 0:00:26.7]} 35. Rxe4 {[%clk 0:01:06.1]} 35...
Kh7 {[%clk 0:00:27.6]} 36. Re8 {[%clk 0:01:02.4]} 36... Bc7 {[%clk 0:00:16.9]}
37. Rxf8 {[%clk 0:00:59.3]} 37... Qxf8 {[%clk 0:00:17.8]} 38. Qe4+ {[%clk
0:00:59.8]} 38... Kh8 {[%clk 0:00:17]} 39. Qe8 {[%clk 0:01:00.4]} 39... Kg8
{[%clk 0:00:16.3]} 40. Qxf8+ {[%clk 0:01:00.4]} 40... Kxf8 {[%clk 0:00:17.2]}
41. g4 {[%clk 0:00:59.5]} 41... b6 {[%clk 0:00:16.3]} 42. f3 {[%clk 0:00:59.4]}
42... bxc5 {[%clk 0:00:15.8]} 43. bxc5 {[%clk 0:01:00.3]} 43... Ba5 {[%clk
0:00:16.1]} 44. Re4 {[%clk 0:00:59.6]} 44... Kf7 {[%clk 0:00:15]} 45. Kf2 {[%clk
0:00:59.6]} 45... Bd8 {[%clk 0:00:13.5]} 46. Ke3 {[%clk 0:00:59.5]} 46... Be7
{[%clk 0:00:13.6]} 47. Kd4 {[%clk 0:00:59.4]} 47... Bf6+ {[%clk 0:00:14.3]} 48.
Kd5 {[%clk 0:00:59.8]} 48... h5 {[%clk 0:00:15.1]} 49. gxh5 {[%clk 0:00:59.8]}
49... Bd8 {[%clk 0:00:14.1]} 50. Kd6 {[%clk 0:00:58.4]} 50... Ba5 {[%clk
0:00:12.2]} 51. c6 {[%clk 0:00:58.8]} 51... Be1 {[%clk 0:00:13.1]} 52. Rxe1
{[%clk 0:00:58.5]} 52... Kf6 {[%clk 0:00:12.9]} 53. c7 {[%clk 0:00:58.9]} 53...
g6 {[%clk 0:00:13.8]} 54. c8=Q {[%clk 0:00:59]} 54... Kg5 {[%clk 0:00:14.7]} 55.
Qd8+ {[%clk 0:00:59.1]} 55... Kf4 {[%clk 0:00:14.8]} 56. Qh4+ {[%clk 0:00:58.3]}
56... Kf5 {[%clk 0:00:15.3]} 57. Re5# {[%clk 0:00:57.9]} 1-0

[Event "Early-Titled-Tuesday-Blitz-August-29-2023"]
[Site "Chess.com"]
[Date "2023.08.29"]
[Round "9"]
[White "tsaruk_maks"]
[Black "tptagain"]
[Result "0-1"]
[WhiteElo "2766"]
[BlackElo "2894"]
[TimeControl "180+1"]
[EndTime "9:43:01 PDT"]
[Termination "tptagain won by resignation"]

1. e4 {[%clk 0:03:00.9]} 1... c6 {[%clk 0:03:00.1]} 2. d4 {[%clk 0:03:00.8]}
2... d5 {[%clk 0:03:00.7]} 3. Nc3 {[%clk 0:03:01.2]} 3... a6 {[%clk 0:02:59.7]}
4. h3 {[%clk 0:02:59.5]} 4... b5 {[%clk 0:02:58]} 5. exd5 {[%clk 0:02:55.8]}
5... cxd5 {[%clk 0:02:57.6]} 6. Nf3 {[%clk 0:02:53.7]} 6... Bf5 {[%clk
0:02:52.8]} 7. Bd3 {[%clk 0:02:53.5]} 7... Bxd3 {[%clk 0:02:52.8]} 8. Qxd3
{[%clk 0:02:54.4]} 8... e6 {[%clk 0:02:53.1]} 9. O-O {[%clk 0:02:52.1]} 9... Nc6
{[%clk 0:02:53]} 10. a4 {[%clk 0:02:49.1]} 10... b4 {[%clk 0:02:52.5]} 11. Ne2
{[%clk 0:02:49.5]} 11... Nf6 {[%clk 0:02:52.6]} 12. Bf4 {[%clk 0:02:45.4]} 12...
Bd6 {[%clk 0:02:47.7]} 13. Bxd6 {[%clk 0:02:45.3]} 13... Qxd6 {[%clk 0:02:48.6]}
14. Ng3 {[%clk 0:02:46]} 14... O-O {[%clk 0:02:48.6]} 15. Rfe1 {[%clk
0:02:43.5]} 15... Qc7 {[%clk 0:02:34.9]} 16. Re2 {[%clk 0:02:40.8]} 16... Rfc8
{[%clk 0:02:31.8]} 17. h4 {[%clk 0:02:26.2]} 17... Qf4 {[%clk 0:02:24.4]} 18. h5
{[%clk 0:02:10.7]} 18... h6 {[%clk 0:02:19.6]} 19. Rd1 {[%clk 0:01:53.4]} 19...
Na5 {[%clk 0:02:07]} 20. Re5 {[%clk 0:01:12.8]} 20... Nd7 {[%clk 0:01:37.8]} 21.
Re2 {[%clk 0:00:31.3]} 21... Nc4 {[%clk 0:01:36.8]} 22. c3 {[%clk 0:00:29.8]}
22... bxc3 {[%clk 0:01:31.1]} 23. bxc3 {[%clk 0:00:16.9]} 23... Rab8 {[%clk
0:01:30.3]} 24. Rde1 {[%clk 0:00:15.7]} 24... a5 {[%clk 0:01:28]} 25. Ne5 {[%clk
0:00:14.7]} 25... Ndxe5 {[%clk 0:01:27.5]} 26. dxe5 {[%clk 0:00:15.6]} 26... Rb3
{[%clk 0:01:21.6]} 27. Rc2 {[%clk 0:00:10.4]} 27... Rcb8 {[%clk 0:01:12.7]} 28.
Qd4 {[%clk 0:00:03.5]} 28... Qxd4 {[%clk 0:01:11.1]} 29. cxd4 {[%clk 0:00:04.4]}
29... Ra3 {[%clk 0:01:11]} 30. Nf1 {[%clk 0:00:03.3]} 30... Rxa4 {[%clk
0:01:09.8]} 31. Ne3 {[%clk 0:00:03.9]} 31... Rbb4 {[%clk 0:01:02.6]} 32. Nxc4
{[%clk 0:00:02]} 32... Rxc4 {[%clk 0:01:02.2]} 33. Rb2 {[%clk 0:00:02.5]} 33...
Rab4 {[%clk 0:01:02.1]} 34. Ra2 {[%clk 0:00:02.2]} 34... a4 {[%clk 0:01:01.9]}
35. Rea1 {[%clk 0:00:01.8]} 35... Rxd4 {[%clk 0:01:02.1]} 36. g3 {[%clk
0:00:02.1]} 36... Re4 {[%clk 0:01:01.4]} 37. f4 {[%clk 0:00:01.9]} 37... Kh7
{[%clk 0:01:00.5]} 38. Kh2 {[%clk 0:00:02.4]} 38... g6 {[%clk 0:01:00.8]} 39.
hxg6+ {[%clk 0:00:03.3]} 39... Kxg6 {[%clk 0:01:01.7]} 40. Kh3 {[%clk
0:00:04.2]} 40... h5 {[%clk 0:01:00.4]} 41. Ra3 {[%clk 0:00:05.1]} 41... Rec4
{[%clk 0:00:57.9]} 42. Rf1 {[%clk 0:00:05]} 42... Rb3 {[%clk 0:00:53.9]} 43. Ra2
{[%clk 0:00:05.7]} 43... a3 {[%clk 0:00:53.6]} 44. Raf2 {[%clk 0:00:05.8]} 44...
Kf5 {[%clk 0:00:50.2]} 0-1

[Event "Early-Titled-Tuesday-Blitz-August-29-2023"]
[Site "Chess.com"]
[Date "2023.08.29"]
[Round "9"]
[White "Iball95"]
[Black "zabivol_mc"]
[Result "1-0"]
[WhiteElo "2786"]
[BlackElo "2588"]
[TimeControl "180+1"]
[EndTime "9:43:02 PDT"]
[Termination "Iball95 won by checkmate"]

1. e4 {[%clk 0:03:00.9]} 1... e5 {[%clk 0:02:59.4]} 2. Nf3 {[%clk 0:02:58.3]}
2... Nc6 {[%clk 0:02:59.3]} 3. Nc3 {[%clk 0:02:56.7]} 3... Nf6 {[%clk 0:02:58]}
4. Bb5 {[%clk 0:02:56]} 4... Bb4 {[%clk 0:02:56.2]} 5. Nd5 {[%clk 0:02:55.7]}
5... Bc5 {[%clk 0:02:50.1]} 6. O-O {[%clk 0:02:54.7]} 6... O-O {[%clk
0:02:34.5]} 7. d4 {[%clk 0:02:54.1]} 7... Nxd5 {[%clk 0:02:29.6]} 8. dxc5 {[%clk
0:02:51.6]} 8... Nf6 {[%clk 0:02:20.6]} 9. Bg5 {[%clk 0:01:56.1]} 9... Qe7
{[%clk 0:02:19.6]} 10. Bxc6 {[%clk 0:01:49.1]} 10... dxc6 {[%clk 0:02:17.1]} 11.
b4 {[%clk 0:01:49.6]} 11... h6 {[%clk 0:02:04.1]} 12. Bh4 {[%clk 0:01:41.8]}
12... Bg4 {[%clk 0:01:49.3]} 13. h3 {[%clk 0:01:41.7]} 13... Bh5 {[%clk
0:01:49]} 14. Re1 {[%clk 0:01:40.4]} 14... Rad8 {[%clk 0:01:47.3]} 15. Qe2
{[%clk 0:01:40.3]} 15... Bxf3 {[%clk 0:01:40.1]} 16. Qxf3 {[%clk 0:01:41.2]}
16... g5 {[%clk 0:01:40.1]} 17. Bg3 {[%clk 0:01:40.5]} 17... Qe6 {[%clk
0:01:30.6]} 18. Qb3 {[%clk 0:01:35.5]} 18... Rfe8 {[%clk 0:01:24.9]} 19. Re2
{[%clk 0:01:19.2]} 19... Rd4 {[%clk 0:01:19.2]} 20. c3 {[%clk 0:01:18.6]} 20...
Rxe4 {[%clk 0:01:14.2]} 21. Rd2 {[%clk 0:01:14.4]} 21... Nh5 {[%clk 0:00:56.8]}
22. Bh2 {[%clk 0:00:53.8]} 22... g4 {[%clk 0:00:49.5]} 23. hxg4 {[%clk
0:00:51.4]} 23... Rxg4 {[%clk 0:00:46.5]} 24. f3 {[%clk 0:00:50.2]} 24... Rg5
{[%clk 0:00:40.9]} 25. Re1 {[%clk 0:00:50]} 25... Qg6 {[%clk 0:00:36.4]} 26. Qc4
{[%clk 0:00:40.1]} 26... Re6 {[%clk 0:00:22.7]} 27. a4 {[%clk 0:00:37.7]} 27...
Kh7 {[%clk 0:00:22.2]} 28. b5 {[%clk 0:00:37.3]} 28... Nf6 {[%clk 0:00:17.7]}
29. Qd3 {[%clk 0:00:32.9]} 29... Nd5 {[%clk 0:00:14.8]} 30. Qxg6+ {[%clk
0:00:31.8]} 30... Kxg6 {[%clk 0:00:15.7]} 31. c4 {[%clk 0:00:28.4]} 31... Ne7
{[%clk 0:00:14.2]} 32. Rd7 {[%clk 0:00:26.2]} 32... Nf5 {[%clk 0:00:12.4]} 33.
Rxc7 {[%clk 0:00:24.3]} 33... Nd4 {[%clk 0:00:13.1]} 34. Kf2 {[%clk 0:00:22.9]}
34... Rh5 {[%clk 0:00:10.4]} 35. Bg3 {[%clk 0:00:22.4]} 35... f5 {[%clk
0:00:06.3]} 36. Bxe5 {[%clk 0:00:18.4]} 36... Nc2 {[%clk 0:00:05.3]} 37. Rg7#
{[%clk 0:00:18]} 1-0